[Event "Titled Tuesday Blitz January 17 Late 2023"]
[White "Rian, Kapriaga"]
[Black "Gavilan Diaz, Mario"]
[WhiteFideId "7103263"]
[BlackFideId "2260905"]
[WhiteElo "2089"]
[BlackElo "2271"]
[Result "0-1"]
[Round "07"]
[TimeControl "180+2"]
[Date "2023.01.17"]
[WhiteClock "0:00:01"]
[BlackClock "0:00:29"]

1. d4 {[%clk 0:02:56]}  Nf6 {[%clk 0:02:59]} 2. Nf3 {[%clk 0:02:55]}  c5 {[%clk 0:02:59]} 3. d5 {[%clk 0:02:54]}  e6 {[%clk 0:02:59]} 4. Nc3 {[%clk 0:02:50]}  exd5 {[%clk 0:02:59]} 5. Nxd5 {[%clk 0:02:49]}  Nxd5 {[%clk 0:02:59]} 6. Qxd5 {[%clk 0:02:48]}  Nc6 {[%clk 0:02:59]} 7. Bf4 {[%clk 0:02:32]}  Qf6 {[%clk 0:02:50]} 8. Be5 {[%clk 0:01:59]}  Nxe5 {[%clk 0:02:48]} 9. Qxe5+ {[%clk 0:01:58]}  Qxe5 {[%clk 0:02:48]} 10. Nxe5 {[%clk 0:01:58]}  d6 {[%clk 0:02:34]} 11. Nf3 {[%clk 0:01:56]}  Be7 {[%clk 0:02:22]} 12. O-O-O {[%clk 0:01:54]}  Be6 {[%clk 0:02:11]} 13. e3 {[%clk 0:01:47]}  O-O-O {[%clk 0:02:11]} 14. Be2 {[%clk 0:01:31]}  g5 {[%clk 0:01:53]} 15. a3 {[%clk 0:01:24]}  g4 {[%clk 0:01:47]} 16. Nd2 {[%clk 0:01:23]}  h5 {[%clk 0:01:41]} 17. Kb1 {[%clk 0:01:09]}  Kc7 {[%clk 0:01:37]} 18. e4 {[%clk 0:00:41]}  f5 {[%clk 0:01:23]} 19. exf5 {[%clk 0:00:21]}  Bxf5 {[%clk 0:01:24]} 20. Bd3 {[%clk 0:00:21]}  Bxd3 {[%clk 0:01:17]} 21. cxd3 {[%clk 0:00:21]}  Rdf8 {[%clk 0:01:16]} 22. f3 {[%clk 0:00:19]}  d5 {[%clk 0:01:09]} 23. Rhe1 {[%clk 0:00:18]}  Bd6 {[%clk 0:01:08]} 24. Rh1 {[%clk 0:00:14]}  Rhg8 {[%clk 0:01:01]} 25. fxg4 {[%clk 0:00:11]}  hxg4 {[%clk 0:01:01]} 26. Rdf1 {[%clk 0:00:09]}  Re8 {[%clk 0:00:51]} 27. h3 {[%clk 0:00:07]}  Re2 {[%clk 0:00:48]} 28. Nb3 {[%clk 0:00:04]}  gxh3 {[%clk 0:00:40]} 29. Rf7+ {[%clk 0:00:03]}  Kb6 {[%clk 0:00:35]} 30. Nc1 {[%clk 0:00:01]}  hxg2 {[%clk 0:00:29]} 0-1


[Site "https://www.chess.com"]

[Event "Titled Tuesday Blitz January 17 Late 2023"]
[White "Sreyas Payyappat"]
[Black "Pace, Christopher"]
[WhiteFideId "46674969"]
[BlackFideId "2610167"]
[WhiteElo "2076"]
[BlackElo "2053"]
[Result "1-0"]
[Round "07"]
[TimeControl "180+2"]
[Date "2023.01.17"]
[WhiteClock "0:01:50"]
[BlackClock "0:00:42"]

1. e4 {[%clk 0:03:00]}  e5 {[%clk 0:02:59]} 2. Nf3 {[%clk 0:03:01]}  Nc6 {[%clk 0:03:00]} 3. Bc4 {[%clk 0:03:01]}  Nf6 {[%clk 0:03:00]} 4. d4 {[%clk 0:03:00]}  exd4 {[%clk 0:02:59]} 5. e5 {[%clk 0:03:01]}  d5 {[%clk 0:03:00]} 6. Bb5 {[%clk 0:03:00]}  Ne4 {[%clk 0:03:00]} 7. Nxd4 {[%clk 0:02:59]}  Bd7 {[%clk 0:03:01]} 8. Bxc6 {[%clk 0:02:59]}  bxc6 {[%clk 0:03:02]} 9. c3 {[%clk 0:02:59]}  c5 {[%clk 0:02:44]} 10. Nc2 {[%clk 0:02:58]}  Bb5 {[%clk 0:02:28]} 11. Nba3 {[%clk 0:02:45]}  Ba6 {[%clk 0:02:25]} 12. Ne3 {[%clk 0:02:45]}  c6 {[%clk 0:02:25]} 13. Qa4 {[%clk 0:02:43]}  Bb7 {[%clk 0:01:56]} 14. O-O {[%clk 0:02:41]}  Be7 {[%clk 0:01:54]} 15. f3 {[%clk 0:02:24]}  Ng5 {[%clk 0:01:54]} 16. f4 {[%clk 0:02:23]}  Ne4 {[%clk 0:01:53]} 17. Nxd5 {[%clk 0:02:09]}  Qxd5 {[%clk 0:01:06]} 18. Rd1 {[%clk 0:02:07]}  Nxc3 {[%clk 0:00:48]} 19. bxc3 {[%clk 0:02:04]}  Qe6 {[%clk 0:00:47]} 20. Rb1 {[%clk 0:01:57]}  Bc8 {[%clk 0:00:42]} 21. f5 {[%clk 0:01:50]} 1-0


[Site "https://www.chess.com"]

[Event "Titled Tuesday Blitz January 17 Late 2023"]
[White "Pesotskiy, Mikhail"]
[Black "Szente Varga, Fruzsina"]
[WhiteFideId "34164453"]
[BlackFideId "712264"]
[WhiteElo "2153"]
[BlackElo "2075"]
[Result "0-1"]
[Round "07"]
[TimeControl "180+2"]
[Date "2023.01.17"]
[WhiteClock "0:00:10"]
[BlackClock "0:00:53"]

1. d4 {[%clk 0:03:00]}  Nf6 {[%clk 0:02:58]} 2. c4 {[%clk 0:03:01]}  g6 {[%clk 0:02:58]} 3. Nc3 {[%clk 0:03:01]}  Bg7 {[%clk 0:02:59]} 4. e4 {[%clk 0:03:02]}  d6 {[%clk 0:02:59]} 5. f3 {[%clk 0:03:03]}  O-O {[%clk 0:02:59]} 6. Be3 {[%clk 0:03:04]}  c5 {[%clk 0:03:00]} 7. dxc5 {[%clk 0:03:04]}  dxc5 {[%clk 0:03:00]} 8. Qxd8 {[%clk 0:03:05]}  Rxd8 {[%clk 0:03:00]} 9. Bxc5 {[%clk 0:03:06]}  Nc6 {[%clk 0:03:01]} 10. Nge2 {[%clk 0:03:07]}  b6 {[%clk 0:02:58]} 11. Ba3 {[%clk 0:03:07]}  Be6 {[%clk 0:02:56]} 12. Nd5 {[%clk 0:03:06]}  Bxd5 {[%clk 0:02:43]} 13. cxd5 {[%clk 0:03:07]}  Na5 {[%clk 0:02:43]} 14. Nc3 {[%clk 0:03:05]}  Rd7 {[%clk 0:02:38]} 15. Bb5 {[%clk 0:02:52]}  Rc7 {[%clk 0:02:38]} 16. Ke2 {[%clk 0:02:44]}  Nh5 {[%clk 0:02:33]} 17. Rac1 {[%clk 0:02:37]}  Nf4+ {[%clk 0:02:31]} 18. Kf2 {[%clk 0:02:35]}  Nc4 {[%clk 0:02:27]} 19. Bxc4 {[%clk 0:02:33]}  Rxc4 {[%clk 0:02:28]} 20. Rhd1 {[%clk 0:02:29]}  Re8 {[%clk 0:02:23]} 21. g3 {[%clk 0:02:15]}  Nh3+ {[%clk 0:02:23]} 22. Kg2 {[%clk 0:02:15]}  Ng5 {[%clk 0:02:23]} 23. Nb5 {[%clk 0:02:12]}  Rec8 {[%clk 0:02:09]} 24. b3 {[%clk 0:02:06]}  Rc2+ {[%clk 0:02:04]} 25. Kf1 {[%clk 0:01:47]}  Nxf3 {[%clk 0:02:02]} 26. Rxc2 {[%clk 0:01:40]}  Rxc2 {[%clk 0:02:03]} 27. Rc1 {[%clk 0:01:41]}  Nxh2+ {[%clk 0:02:00]} 28. Ke1 {[%clk 0:01:40]}  Nf3+ {[%clk 0:01:45]} 29. Kf1 {[%clk 0:01:40]}  Nd2+ {[%clk 0:01:45]} 30. Kg2 {[%clk 0:01:30]}  Rxc1 {[%clk 0:01:45]} 31. Bxc1 {[%clk 0:01:31]}  Nxe4 {[%clk 0:01:44]} 32. Nxa7 {[%clk 0:01:30]}  Nc3 {[%clk 0:01:44]} 33. Nc8 {[%clk 0:01:27]}  Nxd5 {[%clk 0:01:43]} 34. a4 {[%clk 0:01:04]}  Kf8 {[%clk 0:01:39]} 35. b4 {[%clk 0:00:56]}  Bd4 {[%clk 0:01:22]} 36. a5 {[%clk 0:00:52]}  Nxb4 {[%clk 0:01:01]} 37. axb6 {[%clk 0:00:40]}  Na6 {[%clk 0:00:58]} 38. b7 {[%clk 0:00:22]}  Ke8 {[%clk 0:00:57]} 39. Bg5 {[%clk 0:00:13]}  f6 {[%clk 0:00:56]} 40. Bf4 {[%clk 0:00:13]}  e5 {[%clk 0:00:56]} 41. Bh6 {[%clk 0:00:12]}  Kd7 {[%clk 0:00:55]} 42. Bg7 {[%clk 0:00:12]}  e4 {[%clk 0:00:54]} 43. Na7 {[%clk 0:00:10]}  Bxa7 {[%clk 0:00:53]} 0-1


[Site "https://www.chess.com"]

[Event "Titled Tuesday Blitz January 17 Late 2023"]
[White "Szyszylo, Rafal"]
[Black "Slovineanu, Viacheslav"]
[WhiteFideId "1109626"]
[BlackFideId "13900510"]
[WhiteElo "2091"]
[BlackElo "2412"]
[Result "0-1"]
[Round "07"]
[TimeControl "180+2"]
[Date "2023.01.17"]
[WhiteClock "0:00:01"]
[BlackClock "0:00:44"]

1. e4 {[%clk 0:02:59]}  c6 {[%clk 0:02:59]} 2. d4 {[%clk 0:02:58]}  d5 {[%clk 0:03:00]} 3. e5 {[%clk 0:02:58]}  Bf5 {[%clk 0:02:59]} 4. Nf3 {[%clk 0:02:57]}  e6 {[%clk 0:02:59]} 5. Be2 {[%clk 0:02:55]}  Nd7 {[%clk 0:02:58]} 6. Nbd2 {[%clk 0:02:54]}  a6 {[%clk 0:02:56]} 7. a4 {[%clk 0:02:54]}  h6 {[%clk 0:02:53]} 8. O-O {[%clk 0:02:53]}  c5 {[%clk 0:02:48]} 9. c4 {[%clk 0:02:47]}  Ne7 {[%clk 0:02:46]} 10. Qb3 {[%clk 0:02:38]}  Qc7 {[%clk 0:02:34]} 11. cxd5 {[%clk 0:02:35]}  Nxd5 {[%clk 0:02:34]} 12. Bc4 {[%clk 0:02:28]}  N7b6 {[%clk 0:02:23]} 13. a5 {[%clk 0:02:22]}  Nxc4 {[%clk 0:02:22]} 14. Nxc4 {[%clk 0:02:22]}  Be7 {[%clk 0:02:20]} 15. Be3 {[%clk 0:01:44]}  O-O {[%clk 0:02:14]} 16. dxc5 {[%clk 0:01:38]}  Nxe3 {[%clk 0:01:51]} 17. Nxe3 {[%clk 0:01:34]}  Be4 {[%clk 0:01:49]} 18. Nd2 {[%clk 0:01:18]}  Qxe5 {[%clk 0:01:48]} 19. Nxe4 {[%clk 0:01:17]}  Qxe4 {[%clk 0:01:48]} 20. Qc3 {[%clk 0:01:11]}  Rac8 {[%clk 0:01:46]} 21. b4 {[%clk 0:01:10]}  Bf6 {[%clk 0:01:45]} 22. Qc4 {[%clk 0:01:05]}  Qxc4 {[%clk 0:01:44]} 23. Nxc4 {[%clk 0:01:06]}  Bxa1 {[%clk 0:01:42]} 24. Rxa1 {[%clk 0:01:07]}  Rfd8 {[%clk 0:01:35]} 25. Nd6 {[%clk 0:01:07]}  Rc7 {[%clk 0:01:35]} 26. f4 {[%clk 0:01:05]}  Rcd7 {[%clk 0:01:30]} 27. Rd1 {[%clk 0:01:02]}  Kf8 {[%clk 0:01:29]} 28. Kf2 {[%clk 0:01:02]}  Ke7 {[%clk 0:01:28]} 29. Ke3 {[%clk 0:01:00]}  Rxd6 {[%clk 0:01:26]} 30. cxd6+ {[%clk 0:01:00]}  Rxd6 {[%clk 0:01:26]} 31. Rc1 {[%clk 0:01:00]}  Rc6 {[%clk 0:01:26]} 32. Rb1 {[%clk 0:00:47]}  Rc2 {[%clk 0:01:20]} 33. Kf3 {[%clk 0:00:43]}  f5 {[%clk 0:01:15]} 34. b5 {[%clk 0:00:42]}  Ra2 {[%clk 0:01:11]} 35. bxa6 {[%clk 0:00:40]}  bxa6 {[%clk 0:01:11]} 36. g4 {[%clk 0:00:24]}  Ra3+ {[%clk 0:01:10]} 37. Kf2 {[%clk 0:00:23]}  fxg4 {[%clk 0:01:10]} 38. f5 {[%clk 0:00:21]}  exf5 {[%clk 0:01:01]} 39. Rb7+ {[%clk 0:00:17]}  Kf6 {[%clk 0:00:53]} 40. Rb6+ {[%clk 0:00:16]}  Ke5 {[%clk 0:00:53]} 41. Rxa6 {[%clk 0:00:17]}  Kf4 {[%clk 0:00:53]} 42. Ra8 {[%clk 0:00:08]}  Ra2+ {[%clk 0:00:52]} 43. Kf1 {[%clk 0:00:08]}  Kf3 {[%clk 0:00:49]} 44. Ke1 {[%clk 0:00:07]}  Rxh2 {[%clk 0:00:47]} 45. a6 {[%clk 0:00:07]}  Ra2 {[%clk 0:00:48]} 46. Kd1 {[%clk 0:00:07]}  f4 {[%clk 0:00:47]} 47. Kc1 {[%clk 0:00:04]}  g3 {[%clk 0:00:47]} 48. Kb1 {[%clk 0:00:05]}  Ra5 {[%clk 0:00:47]} 49. Rg8 {[%clk 0:00:02]}  g5 {[%clk 0:00:46]} 50. Rg6 {[%clk 0:00:01]}  g2 {[%clk 0:00:45]} 51. Rxh6 {[%clk 0:00:01]}  g1=Q+ {[%clk 0:00:45]} 52. Kb2 {[%clk 0:00:01]}  Qd4+ {[%clk 0:00:44]} 0-1


[Site "https://www.chess.com"]

[Event "Titled Tuesday Blitz January 17 Late 2023"]
[White "Gurevich, Dmitry"]
[Black "Coelho, Ramyres Santana"]
[WhiteFideId "2000407"]
[BlackFideId "2120690"]
[WhiteElo "2393"]
[BlackElo "1981"]
[Result "1-0"]
[Round "07"]
[TimeControl "180+2"]
[Date "2023.01.17"]
[WhiteClock "0:00:03"]
[BlackClock "0:00:19"]

1. d4 {[%clk 0:03:00]}  Nf6 {[%clk 0:02:59]} 2. c4 {[%clk 0:03:00]}  g6 {[%clk 0:02:59]} 3. Nc3 {[%clk 0:03:00]}  Bg7 {[%clk 0:03:00]} 4. e4 {[%clk 0:03:00]}  d6 {[%clk 0:03:00]} 5. Nf3 {[%clk 0:03:00]}  O-O {[%clk 0:03:01]} 6. Be2 {[%clk 0:03:00]}  Nc6 {[%clk 0:03:01]} 7. d5 {[%clk 0:02:59]}  Ne5 {[%clk 0:03:01]} 8. Nxe5 {[%clk 0:02:58]}  dxe5 {[%clk 0:03:02]} 9. Be3 {[%clk 0:02:58]}  Ne8 {[%clk 0:02:58]} 10. O-O {[%clk 0:02:56]}  f5 {[%clk 0:02:58]} 11. f3 {[%clk 0:02:56]}  f4 {[%clk 0:02:58]} 12. Bf2 {[%clk 0:02:55]}  g5 {[%clk 0:02:57]} 13. c5 {[%clk 0:02:54]}  Nf6 {[%clk 0:02:56]} 14. Rc1 {[%clk 0:02:49]}  h5 {[%clk 0:02:55]} 15. h3 {[%clk 0:02:46]}  Qe8 {[%clk 0:02:48]} 16. Nb5 {[%clk 0:02:43]}  Qg6 {[%clk 0:02:20]} 17. Nxc7 {[%clk 0:02:41]}  Bd7 {[%clk 0:02:18]} 18. Ne6 {[%clk 0:02:38]}  Bxe6 {[%clk 0:02:18]} 19. dxe6 {[%clk 0:02:37]}  Rad8 {[%clk 0:02:17]} 20. Qb3 {[%clk 0:02:31]}  g4 {[%clk 0:02:15]} 21. fxg4 {[%clk 0:02:28]}  hxg4 {[%clk 0:02:16]} 22. Bxg4 {[%clk 0:02:25]}  Nxg4 {[%clk 0:02:12]} 23. hxg4 {[%clk 0:02:23]}  Qxg4 {[%clk 0:02:11]} 24. Qf3 {[%clk 0:02:11]}  Qg6 {[%clk 0:02:10]} 25. c6 {[%clk 0:02:02]}  Qxe6 {[%clk 0:01:56]} 26. Qb3 {[%clk 0:01:57]}  Qxb3 {[%clk 0:01:53]} 27. axb3 {[%clk 0:01:57]}  bxc6 {[%clk 0:01:52]} 28. Rxc6 {[%clk 0:01:55]}  Rd2 {[%clk 0:01:51]} 29. Bxa7 {[%clk 0:01:44]}  Rxb2 {[%clk 0:01:47]} 30. Rf3 {[%clk 0:01:44]}  Bf6 {[%clk 0:01:37]} 31. Rfc3 {[%clk 0:01:32]}  Kf7 {[%clk 0:01:13]} 32. Bf2 {[%clk 0:01:05]}  Ra8 {[%clk 0:01:08]} 33. Rc2 {[%clk 0:00:54]}  Rxb3 {[%clk 0:01:06]} 34. Rb6 {[%clk 0:00:40]}  Ra4 {[%clk 0:01:04]} 35. Rxb3 {[%clk 0:00:31]}  Rxe4 {[%clk 0:01:04]} 36. Kf1 {[%clk 0:00:30]}  Ra4 {[%clk 0:00:51]} 37. Rbc3 {[%clk 0:00:27]}  e4 {[%clk 0:00:46]} 38. Rc4 {[%clk 0:00:26]}  Ra1+ {[%clk 0:00:42]} 39. Rc1 {[%clk 0:00:26]}  Rxc1+ {[%clk 0:00:36]} 40. Rxc1 {[%clk 0:00:26]}  e3 {[%clk 0:00:36]} 41. Be1 {[%clk 0:00:25]}  e5 {[%clk 0:00:36]} 42. Ke2 {[%clk 0:00:25]}  Kg6 {[%clk 0:00:35]} 43. Kf3 {[%clk 0:00:24]}  Kf5 {[%clk 0:00:35]} 44. Rc5 {[%clk 0:00:20]}  Be7 {[%clk 0:00:35]} 45. Rb5 {[%clk 0:00:18]}  Bd6 {[%clk 0:00:34]} 46. g3 {[%clk 0:00:16]}  Ke6 {[%clk 0:00:34]} 47. gxf4 {[%clk 0:00:16]}  exf4 {[%clk 0:00:35]} 48. Bc3 {[%clk 0:00:14]}  Bc7 {[%clk 0:00:31]} 49. Rh5 {[%clk 0:00:13]}  Bb8 {[%clk 0:00:28]} 50. Ke4 {[%clk 0:00:11]}  e2 {[%clk 0:00:27]} 51. Rh1 {[%clk 0:00:10]}  Be5 {[%clk 0:00:15]} 52. Bxe5 {[%clk 0:00:08]}  f3 {[%clk 0:00:15]} 53. Bg3 {[%clk 0:00:07]}  Kf6 {[%clk 0:00:12]} 54. Kxf3 {[%clk 0:00:07]}  e1=Q {[%clk 0:00:13]} 55. Bxe1 {[%clk 0:00:07]}  Kg5 {[%clk 0:00:14]} 56. Bc3 {[%clk 0:00:05]}  Kf5 {[%clk 0:00:15]} 57. Rh5+ {[%clk 0:00:04]}  Kg6 {[%clk 0:00:16]} 58. Kg4 {[%clk 0:00:04]}  Kf7 {[%clk 0:00:17]} 59. Kf5 {[%clk 0:00:04]}  Ke8 {[%clk 0:00:17]} 60. Rh6 {[%clk 0:00:05]}  Kd7 {[%clk 0:00:18]} 61. Be5 {[%clk 0:00:04]}  Kc8 {[%clk 0:00:18]} 62. Rh7 {[%clk 0:00:03]}  Kd8 {[%clk 0:00:18]} 63. Ke6 {[%clk 0:00:04]}  Ke8 {[%clk 0:00:19]} 64. Rh8# {[%clk 0:00:03]} 1-0


[Site "https://www.chess.com"]

[Event "Titled Tuesday Blitz January 17 Late 2023"]
[White "Remolar Gallen, Jose"]
[Black "Floresvillar Gonzalez, Luis Migu"]
[WhiteFideId "2215187"]
[BlackFideId "5100542"]
[WhiteElo "2285"]
[BlackElo "2043"]
[Result "0-1"]
[Round "07"]
[TimeControl "180+2"]
[Date "2023.01.17"]
[WhiteClock "0:00:11"]
[BlackClock "0:00:12"]

1. e4 {[%clk 0:03:00]}  c6 {[%clk 0:02:58]} 2. d4 {[%clk 0:02:59]}  d5 {[%clk 0:02:59]} 3. e5 {[%clk 0:02:59]}  Bf5 {[%clk 0:02:58]} 4. g4 {[%clk 0:03:00]}  Bd7 {[%clk 0:02:57]} 5. f4 {[%clk 0:02:57]}  e6 {[%clk 0:02:53]} 6. Nf3 {[%clk 0:02:57]}  Be7 {[%clk 0:02:53]} 7. Bd3 {[%clk 0:02:52]}  Bh4+ {[%clk 0:02:44]} 8. Kf1 {[%clk 0:02:51]}  Be7 {[%clk 0:02:44]} 9. Kg2 {[%clk 0:02:49]}  f6 {[%clk 0:02:41]} 10. Be3 {[%clk 0:02:42]}  fxe5 {[%clk 0:02:41]} 11. dxe5 {[%clk 0:02:40]}  c5 {[%clk 0:02:33]} 12. c3 {[%clk 0:02:37]}  g6 {[%clk 0:02:26]} 13. h4 {[%clk 0:02:31]}  Nh6 {[%clk 0:02:23]} 14. Kg3 {[%clk 0:02:27]}  Nf7 {[%clk 0:02:15]} 15. Nbd2 {[%clk 0:02:07]}  Nc6 {[%clk 0:02:15]} 16. Qg1 {[%clk 0:02:05]}  b6 {[%clk 0:02:11]} 17. Re1 {[%clk 0:01:56]}  Qc7 {[%clk 0:02:10]} 18. Bf2 {[%clk 0:01:30]}  O-O-O {[%clk 0:02:09]} 19. a3 {[%clk 0:01:16]}  Rhg8 {[%clk 0:01:58]} 20. Rc1 {[%clk 0:00:57]}  c4 {[%clk 0:01:49]} 21. Bc2 {[%clk 0:00:49]}  Kb8 {[%clk 0:01:36]} 22. Re1 {[%clk 0:00:49]}  Bc8 {[%clk 0:01:33]} 23. Kg2 {[%clk 0:00:41]}  Bb7 {[%clk 0:01:32]} 24. Nd4 {[%clk 0:00:40]}  Nxd4 {[%clk 0:01:28]} 25. Bxd4 {[%clk 0:00:41]}  Nh6 {[%clk 0:01:23]} 26. Kh3 {[%clk 0:00:38]}  Bc5 {[%clk 0:01:20]} 27. Qe3 {[%clk 0:00:28]}  Nf7 {[%clk 0:01:13]} 28. Rhf1 {[%clk 0:00:28]}  h5 {[%clk 0:01:13]} 29. g5 {[%clk 0:00:28]}  Rdf8 {[%clk 0:01:07]} 30. Nf3 {[%clk 0:00:26]}  Nd8 {[%clk 0:01:04]} 31. Rf2 {[%clk 0:00:21]}  Bc8 {[%clk 0:00:57]} 32. Ng1 {[%clk 0:00:19]}  Bxd4 {[%clk 0:00:55]} 33. cxd4 {[%clk 0:00:19]}  Nc6 {[%clk 0:00:55]} 34. Ne2 {[%clk 0:00:19]}  Bd7 {[%clk 0:00:53]} 35. Ref1 {[%clk 0:00:19]}  Ne7 {[%clk 0:00:50]} 36. Ng3 {[%clk 0:00:16]}  b5 {[%clk 0:00:45]} 37. Qc3 {[%clk 0:00:16]}  Qb6 {[%clk 0:00:44]} 38. Rb1 {[%clk 0:00:17]}  Nc6 {[%clk 0:00:40]} 39. Ne2 {[%clk 0:00:17]}  a5 {[%clk 0:00:38]} 40. b3 {[%clk 0:00:17]}  cxb3 {[%clk 0:00:33]} 41. Rxb3 {[%clk 0:00:13]}  Na7 {[%clk 0:00:31]} 42. Bd3 {[%clk 0:00:13]}  Rc8 {[%clk 0:00:30]} 43. Qb2 {[%clk 0:00:13]}  Rc7 {[%clk 0:00:26]} 44. Kg3 {[%clk 0:00:12]}  Rb7 {[%clk 0:00:19]} 45. Kf3 {[%clk 0:00:12]}  Qd8 {[%clk 0:00:18]} 46. Rf1 {[%clk 0:00:12]}  Be8 {[%clk 0:00:15]} 47. Ke3 {[%clk 0:00:11]}  Rgg7 {[%clk 0:00:15]} 48. Rb1 {[%clk 0:00:11]}  Rgc7 {[%clk 0:00:15]} 49. Rc3 {[%clk 0:00:11]}  Rxc3 {[%clk 0:00:14]} 50. Qxc3 {[%clk 0:00:12]}  Qc7 {[%clk 0:00:14]} 51. Rc1 {[%clk 0:00:12]}  Qxc3 {[%clk 0:00:13]} 52. Rxc3 {[%clk 0:00:10]}  b4 {[%clk 0:00:14]} 53. axb4 {[%clk 0:00:10]}  axb4 {[%clk 0:00:15]} 54. Rb3 {[%clk 0:00:11]}  Ba4 {[%clk 0:00:14]} 55. Rb2 {[%clk 0:00:11]}  b3 {[%clk 0:00:14]} 56. Nc1 {[%clk 0:00:11]}  Nc6 {[%clk 0:00:13]} 57. Be2 {[%clk 0:00:11]}  Na5 {[%clk 0:00:13]} 58. Bd1 {[%clk 0:00:11]}  Nc4+ {[%clk 0:00:12]} 0-1


[Site "https://www.chess.com"]

[Event "Titled Tuesday Blitz January 17 Late 2023"]
[White "Qiao, Cindy"]
[Black "Chlpik, Martin"]
[WhiteFideId "2620243"]
[BlackFideId "14923351"]
[WhiteElo "1785"]
[BlackElo "2287"]
[Result "0-1"]
[Round "07"]
[TimeControl "180+2"]
[Date "2023.01.17"]
[WhiteClock "0:00:35"]
[BlackClock "0:00:11"]

1. d4 {[%clk 0:03:00]}  Nf6 {[%clk 0:02:59]} 2. Bf4 {[%clk 0:03:01]}  c5 {[%clk 0:02:57]} 3. e3 {[%clk 0:03:01]}  d5 {[%clk 0:02:57]} 4. c3 {[%clk 0:03:00]}  Nc6 {[%clk 0:02:56]} 5. Nf3 {[%clk 0:03:01]}  Qb6 {[%clk 0:02:56]} 6. Qc2 {[%clk 0:03:01]}  Bf5 {[%clk 0:02:55]} 7. dxc5 {[%clk 0:03:01]}  Bxc2 {[%clk 0:02:49]} 8. cxb6 {[%clk 0:03:01]}  axb6 {[%clk 0:02:50]} 9. Na3 {[%clk 0:03:02]}  Rxa3 {[%clk 0:02:28]} 10. bxa3 {[%clk 0:03:01]}  e6 {[%clk 0:02:28]} 11. Kd2 {[%clk 0:02:33]}  Bg6 {[%clk 0:02:23]} 12. Bd3 {[%clk 0:02:31]}  Bxa3 {[%clk 0:02:19]} 13. Bxg6 {[%clk 0:02:31]}  hxg6 {[%clk 0:02:19]} 14. Ke2 {[%clk 0:02:21]}  Ne4 {[%clk 0:02:16]} 15. Rhe1 {[%clk 0:02:08]}  Bb2 {[%clk 0:02:09]} 16. Rab1 {[%clk 0:02:08]}  Nxc3+ {[%clk 0:02:09]} 17. Kf1 {[%clk 0:02:09]}  Nxb1 {[%clk 0:02:08]} 18. Rxb1 {[%clk 0:02:10]}  Bf6 {[%clk 0:02:03]} 19. Rxb6 {[%clk 0:02:09]}  Nd8 {[%clk 0:01:53]} 20. Bc7 {[%clk 0:02:03]}  O-O {[%clk 0:01:53]} 21. Bxd8 {[%clk 0:02:02]}  Rxd8 {[%clk 0:01:53]} 22. Rxb7 {[%clk 0:01:53]}  Ra8 {[%clk 0:01:54]} 23. Ne1 {[%clk 0:01:30]}  Rxa2 {[%clk 0:01:53]} 24. Nd3 {[%clk 0:01:31]}  e5 {[%clk 0:01:29]} 25. Rd7 {[%clk 0:01:28]}  d4 {[%clk 0:01:28]} 26. exd4 {[%clk 0:01:25]}  exd4 {[%clk 0:01:27]} 27. Nb4 {[%clk 0:01:21]}  Rb2 {[%clk 0:00:51]} 28. Nc6 {[%clk 0:01:17]}  Rc2 {[%clk 0:00:33]} 29. Nd8 {[%clk 0:01:14]}  Rc8 {[%clk 0:00:24]} 30. Nxf7 {[%clk 0:01:09]}  d3 {[%clk 0:00:24]} 31. Ke1 {[%clk 0:00:56]}  Bc3+ {[%clk 0:00:19]} 32. Kf1 {[%clk 0:00:45]}  d2 {[%clk 0:00:12]} 33. Ng5 {[%clk 0:00:41]}  Re8 {[%clk 0:00:12]} 34. Nf3 {[%clk 0:00:35]}  Re1+ {[%clk 0:00:11]} 0-1


[Site "https://www.chess.com"]

[Event "Titled Tuesday Blitz January 17 Late 2023"]
[White "Batista, Renato Luiz"]
[Black "Davidson, Kevin"]
[WhiteFideId "2106540"]
[BlackFideId "2056810"]
[WhiteElo "2174"]
[BlackElo "2154"]
[Result "0-1"]
[Round "07"]
[TimeControl "180+2"]
[Date "2023.01.17"]
[WhiteClock "0:00:09"]
[BlackClock "0:00:02"]

1. e4 {[%clk 0:03:00]}  c5 {[%clk 0:02:59]} 2. Nf3 {[%clk 0:03:00]}  d6 {[%clk 0:02:59]} 3. d4 {[%clk 0:02:59]}  cxd4 {[%clk 0:03:00]} 4. Nxd4 {[%clk 0:03:00]}  Nf6 {[%clk 0:03:00]} 5. f3 {[%clk 0:03:00]}  e5 {[%clk 0:02:58]} 6. Bb5+ {[%clk 0:02:59]}  Nbd7 {[%clk 0:02:57]} 7. Nb3 {[%clk 0:02:58]}  a6 {[%clk 0:02:47]} 8. Be2 {[%clk 0:02:57]}  b5 {[%clk 0:02:29]} 9. O-O {[%clk 0:02:56]}  Be7 {[%clk 0:02:26]} 10. a4 {[%clk 0:02:55]}  Rb8 {[%clk 0:02:23]} 11. a5 {[%clk 0:02:54]}  O-O {[%clk 0:02:19]} 12. Be3 {[%clk 0:02:51]}  Qc7 {[%clk 0:02:13]} 13. Nc3 {[%clk 0:02:51]}  Bb7 {[%clk 0:02:09]} 14. Rc1 {[%clk 0:02:31]}  Nc5 {[%clk 0:02:00]} 15. Qd2 {[%clk 0:01:46]}  Rfc8 {[%clk 0:01:32]} 16. Bg5 {[%clk 0:01:40]}  Nxb3 {[%clk 0:01:28]} 17. cxb3 {[%clk 0:01:40]}  Qxa5 {[%clk 0:01:28]} 18. Bxf6 {[%clk 0:01:21]}  Bxf6 {[%clk 0:01:21]} 19. Qxd6 {[%clk 0:01:16]}  Rd8 {[%clk 0:01:15]} 20. Qc5 {[%clk 0:00:56]}  Rbc8 {[%clk 0:01:03]} 21. Qf2 {[%clk 0:00:36]}  Qb4 {[%clk 0:00:40]} 22. Nd5 {[%clk 0:00:20]}  Bxd5 {[%clk 0:00:35]} 23. exd5 {[%clk 0:00:21]}  Qxb3 {[%clk 0:00:30]} 24. d6 {[%clk 0:00:18]}  Rxc1 {[%clk 0:00:23]} 25. Rxc1 {[%clk 0:00:17]}  Qxb2 {[%clk 0:00:23]} 26. Rd1 {[%clk 0:00:15]}  a5 {[%clk 0:00:14]} 27. g4 {[%clk 0:00:13]}  a4 {[%clk 0:00:13]} 28. Kf1 {[%clk 0:00:13]}  a3 {[%clk 0:00:11]} 29. h4 {[%clk 0:00:13]}  h6 {[%clk 0:00:10]} 30. Qe3 {[%clk 0:00:12]}  a2 {[%clk 0:00:06]} 31. g5 {[%clk 0:00:12]}  hxg5 {[%clk 0:00:06]} 32. hxg5 {[%clk 0:00:13]}  a1=Q {[%clk 0:00:04]} 33. gxf6 {[%clk 0:00:13]}  gxf6 {[%clk 0:00:04]} 34. f4 {[%clk 0:00:08]}  Qxd1+ {[%clk 0:00:02]} 35. Bxd1 {[%clk 0:00:09]}  Qd4 {[%clk 0:00:01]} 36. Qg3+ {[%clk 0:00:09]}  Kf8 {[%clk 0:00:01]} 37. Bb3 {[%clk 0:00:08]}  Qxf4+ {[%clk 0:00:01]} 38. Qxf4 {[%clk 0:00:07]}  exf4 {[%clk 0:00:02]} 39. Kf2 {[%clk 0:00:08]}  Rxd6 {[%clk 0:00:02]} 40. Kf3 {[%clk 0:00:09]}  Rd4 {[%clk 0:00:03]} 41. Bc2 {[%clk 0:00:08]}  Ke7 {[%clk 0:00:03]} 42. Kg4 {[%clk 0:00:07]}  b4 {[%clk 0:00:03]} 43. Kf5 {[%clk 0:00:08]}  Rc4 {[%clk 0:00:02]} 44. Be4 {[%clk 0:00:08]}  b3 {[%clk 0:00:02]} 45. Bd5 {[%clk 0:00:08]}  Rb4 {[%clk 0:00:02]} 46. Bxb3 {[%clk 0:00:08]}  Rxb3 {[%clk 0:00:02]} 47. Ke4 {[%clk 0:00:09]}  Rb5 {[%clk 0:00:02]} 48. Kd3 {[%clk 0:00:09]}  Ke6 {[%clk 0:00:02]} 49. Kc4 {[%clk 0:00:10]}  Rd5 {[%clk 0:00:02]} 50. Kc3 {[%clk 0:00:09]}  f3 {[%clk 0:00:02]} 0-1


[Site "https://www.chess.com"]